Workbook

Sheet 0. Intro
A1: Introduktion til beregningsmodellen
A3: Baggrund Rigsarkivet har med bistand fra PwC udarbejdet en beregningsmodel, som kommunerne (og regionerne) kan anvende til at estimere omkostningerne ved at aflevere egne arkivalier til Rigsarkivet. Modellen er udarbejdet efter ønske fra kommuner og kan anvendes til aflevering af både it- og papirarkivalier.
A4: Modellens forudsætninger: Et værktøj til mere præcise udgiftsestimater ved afleveringer til Rigsarkivet Modellen giver ikke en tilbudspris på en arkivaflevering, men et estimeret overslag. Det er et værktøj, som kommuner og regioner kan anvende til at foretage mere præcise overslag af omkostningerne til klargøring, oprydning og opbevaring på et offentligt arkiv. Modellen hjælper bl.a. kommunerne og regionerne til at vurdere en it-afleverings kompleksitet og et papirarkivs ordningstilstand. Tidsestimaterne i modellen er baseret på erfaringer med forskellige typer af arkivafleveringer hos Rigsarkivet og en række kommuner. Kommunerne har vurderet, hvor mange timer delopgaverne tager. Der er altså tale om en estimeret gennemsnitssats for delopgaverne. Prisestimeringen er endvidere baseret på, at der i kommunen anvendes en kontorfunktionær med en årsløn på 411.949 kr. og en overheadsstats på 20 pct. til udførelse af opgaverne – Dvs. en timesats på 341 kr. Rigsarkivets timesats er 757 kr. i 2021 og reguleres årligt. Ved aflevering af arkivalier til Rigsarkivet betaler kommunen/regionen en engangsudgift til opbevaring, som blandt andet omfatter håndtering af henvendelser.
A5: Sådan anvender du beregningsmodellen 1) Læs brugervejledningen for den type arkivalier, der skal afleveres til Rigsarkivet (Ark 1.A eller 1.B). Heri beskrives forudsætninger for estimering af en pris for aflevering og afleveringens faser, delopgaver mv. 2) Anvend prisestimeringsarket til at foretage estimeringer (Ark 2).
A6: De fem ark 1.A og B: Brugervejledning for estimering af aflevering af hhv. digitale data og papirarkivalier 2. Prisestimeringsark: Indtast de relevante informationer for at foretage et prisoverslag for aflevering af hhv. digitale data og papirarkivalier 3.A og B: Baggrund: De bagvedliggende beregninger for hhv. digitale og papirafleveringer. Der skal ikke indtastes heri.
A7: Eksterne leverandører En ekstern leverandør er en aktør, som kommunen/regionen valgfrit kan indhente bistand fra til at løfter én eller flere opgaver ifm. klargøring og aflevering af arkivalier til arkiv, f.eks. en it-leverandør, Rigsarkivets Indtægtsdækket Virksomhed eller en privat ordningsleverandør. Visse opgaver som test af arkiveringsversionen eller kontrol af indpakning skal udføres af det modtagende arkiv, dvs. Rigsarkivet, idet der er tale om myndighedsopgaver. Det modtagende arkiv er altså ikke ekstern leverandør, når det modtagende arkiv løfter myndighedsopgaver ifm. afleveringsprocessen.

Sheet 1.A Brugervejledning - Digital
A1: Brugervejledning til aflevering af digitale data
A2: Proces for aflevering af digitale data
A10: Aflevering af digitale data
A44: Vejledning til vurdering af systemkompleksitet: Komplekse og mindre komplekse it-systemer mv.
A45: Kompleksiteten af it-systemet, som data udtrækkes fra, har betydning for prisen på aflevering af digitale data. Nedenstående guide kan anvendes til at foretage en samlet, overordnet vurdering af kompleksisteten af et it-system og dets aflevering.
A46: Kriterie | B46: 1 – Komplekst system | C46: 2 – Mindre komplekst system
A47: Systemtype | B47: Egenudviklet it-system | C47: Standardsystem
A48: Teknisk struktur | B48: Kompleks teknisk struktur | C48: Ikke kompleks teknisk struktur
A49: Anvendelseskreds hos kommunen | B49: Mange forskellige afdelinger og institutioner | C49: Én forvaltning/institution
A50: Antal år, der skal afleveres til arkiv | B50: Mange år (ca. ti år eller mere) | C50: Få år (ca. fem år)
A51: Aflevering til arkiv | B51: Systemet er ikke tidligere afleveret | C51: Systemet er afleveret en eller flere gange tidligere
A52: Afleveringsmodel (skabelon for aflevering af systemet, udarbejdet af Rigsarkivet i samarbejde med leverandøren). Kommunens it-leverandør eller det modtagende arkiv kan oplyse, om der er udarbejdet en afleveringsmodel. | B52: Ingen afleveringsmodel udarbejdet | C52: Afleveringsmodel er udarbejdet
A53: Leverandørerfaring | B53: Skal foretage aflevering første gang eller har kun lavet få afleveringer til arkiv | C53: Har foretaget afleveringer til arkiv mange gange

Sheet 1.B Brugervejledning - Papir
A1: Brugervejledning til aflevering af papir
A2: Proces for aflevering af papirarkivalier
A9: Aflevering af papirarkivalier
A38: Vejledning til vurdering af ordningstilstand for papirarkivalier
A40: Kriterie | B40: 1 – Ordnet | C40: 2 – Mindre ordnet | D40: 3 – Ikke ordnet
A41: Kassation | B41: Sager til kassation er udskilt | C41: Til dels er sager til kassation udskilt | D41: Sager til kassation er ikke udskilt
A42: Skader (I tilfælde af omfattende skader på arkivalierne kan det betyde yderligere omkostninger – f.eks. en omfattende svampeskade, der kræver scanning eller konservering. Det anbefales derfor, at kommunen kontakter det modtagende arkiv for en vurdering) | B42: Ingen fysiske skader på sagerne (svamp mv.) | C42: Ingen fysiske skader på sagerne (svamp mv.) | D42: Der er fysiske skader på sagerne (svamp mv.)
A43: Orden | B43: Sagerne står i korrekt orden efter journalplan/sagsnummer | C43: Sagerne står tildels i korrekt orden efter journalplan/ sagsnummer | D43: Sagerne står ikke i korrekt orden efter journalplan/ sagsnummer
A44: Rensning | B44: Alle sager er renset for plastik, clips mv. | C44: Sager er tildels renset for plastik, clips mv. | D44: Sagerne er ikke renset for plastik, clips mv.
A45: Pakning | B45: Pakket i arkivæsker | C45: Til dels pakket i arkivæsker, men også stadig på hylder og i hængemapper | D45: Står på hylder og/eller i hængemapper
A46: Arkivfortegnelse | B46: Fortegnelse over de enkelte pakker er udarbejdet (arkivfortegnelse) | C46: Til dels er der en arkivfortegnelse (ikke fuldendt) | D46: Der er ikke en arkivfortegnelse over de enkelte pakker

Sheet 2. Prisestimeringsark
B1: Prisestimering
B3: Brugervejledning | C3: LINK
B4: Definitioner | C4: LINK
B5: Vælg arkivtype: | C5: Digitalt
B6: Ønskes ekstern leverandør til opgaver?
B7: =IF(C5="Papir", "Indtast størrelse på arkiv, såfremt det er muligt tages højde for eventuel kassation (angiv hyldemeter):", IF(C5="Digitalt", "Indtast størrelse på arkiv, såfremt det er muligt tages højde for eventuel kassation (angiv GB data):", "Vælg arkivtype")) -> Indtast størrelse på arkiv, såfremt det er muligt tages højde for eventuel kassation (angiv GB data):
B8: =IF(C5="Papir", '3.B Baggrund - Papir'!F4, IF(C5="Digitalt", '3.A Baggrund - Digitalt'!F4, "Vælg arkivtype")) -> Systemkompleksitet:
B9: =IF(AND(C5="Papir",C6="Nej"), '3.B Baggrund - Papir'!F6, IF(AND(C5="Papir",C6="Ja"), '3.B Baggrund - Papir'!F5, IF(AND(C5="Digitalt",C6="Nej"), '3.A Baggrund - Digitalt'!$F$7, IF(AND(C5="Digitalt",C6="Ja"), '3.A Baggrund - Digitalt'!F5, "Vælg leverandør")))) -> Vælg leverandør
B13: Prisoverslag:
C14: Rigsarkiv
B15: 1. Klargøring | C15: =IFERROR( IF(AND($C$5<>"",$C$6<>"",$C$7<>"",$C$8<>"",$C$9<>""), ROUND( IF($C$5="Digitalt", SUMIF('3.A Baggrund - Digitalt'!$B$17:$B$40,'2. Prisestimeringsark'!B15,'3.A Baggrund - Digitalt'!$L$17:$L$40), IF($C$5="Papir", SUMIF('3.B Baggrund - Papir'!$B$17:$B$42,'2. Prisestimeringsark'!B15,'3.B Baggrund - Papir'!$M$17:$M$42), "")), -3), ""), "") -> 
B16: 2. Aflevering | C16: =IFERROR( IF(AND($C$5<>"",$C$6<>"",$C$7<>"",$C$8<>"",$C$9<>""), ROUND( IF($C$5="Digitalt", SUMIF('3.A Baggrund - Digitalt'!$B$17:$B$40,'2. Prisestimeringsark'!B16,'3.A Baggrund - Digitalt'!$L$17:$L$40), IF($C$5="Papir", SUMIF('3.B Baggrund - Papir'!$B$17:$B$42,'2. Prisestimeringsark'!B16,'3.B Baggrund - Papir'!$M$17:$M$42), "")), -3), ""), "") -> 
B17: 3. Opbevaring | C17: =IFERROR( IF(AND($C$5<>"",$C$6<>"",$C$7<>"",$C$8<>"",$C$9<>""), ROUND( IF($C$5="Digitalt", SUMIF('3.A Baggrund - Digitalt'!$B$17:$B$40,'2. Prisestimeringsark'!B17,'3.A Baggrund - Digitalt'!$L$17:$L$40), IF($C$5="Papir", SUMIF('3.B Baggrund - Papir'!$B$17:$B$42,'2. Prisestimeringsark'!B17,'3.B Baggrund - Papir'!$M$17:$M$42), "")), -2), ""), "") -> 
B18: 4. Ekstern leverandør | C18: =IF(AND($C$5<>"",$C$6<>"",$C$7<>"",$C$8<>"",$C$9<>""), IF('2. Prisestimeringsark'!$C$6="Nej",0,C9), "") -> 
B19: Samlede udgifter (1 år)* | C19: =IFERROR(C17+C16+C15+C18,"Afventer inputs") -> Afventer inputs
B20: Samlede udgifter (10 år)* | C20: =IFERROR(C17+C16+C15+C18,"Afventer inputs") -> Afventer inputs
B21: * Der er ved aflevering til Rigsarkivet tale om en engangsudgift til opbevaring.

Sheet 3.A Baggrund - Digitalt
B1: Baggrund: Beregningsmodel - Digitalt arkiv
B3: Valgt bruger input - Digitalt | F3: Tekst for bruger input - Digitalt | L3: Timesatser: | P3: Input til beregning af kommunale timesatser: | Q3: HK'er | R3: AC'er
B4: Størrelse på arkiv (GB data) | D4: =IF('2. Prisestimeringsark'!$C$5="Papir", 0, IF('2. Prisestimeringsark'!$C$5="Digitalt",'2. Prisestimeringsark'!$C$7*1.5, "Vælg arkivtype")) -> 0 | F4: Systemkompleksitet: | H4: Mindre klompleks | I4: Mere kompleks | L4: Rigsarkivet | M4: 892 | P4: Årsløn (inkl. Pension) | Q4: 411949 | R4: 585985 | U4: =Q4*(1+Q6) -> 494338.8
B5: =F4 -> Systemkompleksitet: | D5: =IF('2. Prisestimeringsark'!$C$5="Papir", 0, IF('2. Prisestimeringsark'!$C$5="Digitalt",'2. Prisestimeringsark'!$C$8, "Vælg arkivtype")) -> 0 | F5: Indtast en samlet pris for delopgave 1.1, 1.3 og 2.1 | L5: Kommunal HK | M5: =Q7 -> 340.9233103 | P5: Disponible timer for året | Q5: 1450 | R5: 1450 | U5: =R4*(1+R6) -> 703182
L6: Kommunal AC | M6: =R7 -> 484.9531034 | P6: Overhead | Q6: 0.2 | R6: 0.2 | U6: =U4+U5 -> 1197520.8
B7: =F6 -> 0 | D7: =IF('2. Prisestimeringsark'!$C$5="Papir", 0, IF('2. Prisestimeringsark'!$C$5="Digitalt",'2. Prisestimeringsark'!$C$10, "Vælg arkivtype")) -> 0 | F7: Indtast estimeret egenudgift for opgave 1.3 (produktion af arkiveringsversion) | P7: Timesats: | Q7: =(Q4/Q5)*(1+Q6) -> 340.9233103 | R7: =(R4/R5)*(1+R6) -> 484.9531034
B12: Grå baggrund markerer, at der ikke bør foretages ændringer i cellen
B13: Hvid baggrund markerer, at tekst og tal kan ændres, således det slår igenne i hele modellen
B15: Fase | C15: Opgavenummer | D15: Delopgave beskrivelse | E15: Opgaveansvarlig | F15: Udgiftstype/enhed | G15: Enhedspris - Rigsarkiv | H15: Enhedspris - Eget arkiv | I15: Antal enheder - Opstart | J15: Antal enheder - Kompleksitet 1 | K15: Antal enheder - Kompleksitet 2 | L15: Samlet pris - Rigsarkiv | M15: Samlet pris - Eget arkiv | N15: Kilde: Pris + Omfang | O15: Senest opdateret
B16: (udfyldes fra liste) | C16: (udfyldes) | D16: (udfyldes) | E16: (udfyldes fra liste) | F16: (udfyldes) | G16: (udfyldes) | H16: (udfyldes) | I16: (udfyldes) | J16: (udfyldes) | K16: (udfyldes) | L16: (autogenereres) | M16: 1
B17: 1. Klargøring | C17: 1.1 | D17: Oprydning (mere komplekst) Lukning af sager, efterjournalisering mv. | E17: Kommune | F17: Timepris | G17: =$M$5 -> 340.9233103 | H17: 340.9233103 | J17: 30 | L17: =IF('2. Prisestimeringsark'!$C$6="Nej",J17*G17,0) -> 0 | M17: =IF('2. Prisestimeringsark'!$C$6="Nej",J17*H17,0) -> 0 | N17: Tidsestimater fra kommuner
B18: 1. Klargøring | C18: 1.1 | D18: Oprydning (mindre komplekst): Lukning af sager, efterjournalisering mv. | E18: Kommune | F18: Timepris | G18: 340.9233103 | H18: 340.9233103 | J18: 15 | L18: =IF('2. Prisestimeringsark'!$C$6="Nej",J18*G18,0) -> 0 | M18: =IF('2. Prisestimeringsark'!$C$6="Nej",J18*H18,0) -> 0 | N18: Tidsestimater fra kommuner
B19: 1. Klargøring | C19: 1.2 | D19: Startmøde: Forberedelse, deltagelse | E19: Kommune | F19: Timepris | G19: 340.9233103 | H19: 340.9233103 | J19: 15 | K19: 30 | L19: =IF($D$5=$H$4,$J19*G19, IF($D$5=$I$4,$K19*G19, "-")) -> - | M19: =IF($D$5=$H$4,$J19*H19, IF($D$5=$I$4,$K19*H19, "-")) -> - | N19: Tidsestimater fra kommuner
B20: 1. Klargøring | C20: 1.2 | D20: Startmøde: Forberedelse, deltagelse og referat (inkl. Transport) | E20: RA | F20: Timepris | G20: =$M$4 -> 892 | H20: =$M$5 -> 340.9233103 | J20: 5 | L20: =J20*G20 -> 4460 | M20: =J20*H20 -> 1704.616552 | N20: RA Tidsregistrering
B21: 1. Klargøring | C21: 1.3 | D21: Fremfinding af kontekstdokumentation | E21: Kommune | F21: Timepris | G21: =$M$5 -> 340.9233103 | H21: =$M$5 -> 340.9233103 | J21: 50 | K21: 75 | L21: =IF($D$5=$H$4,$J21*G21, IF($D$5=$I$4,$K21*G21, "-")) -> - | M21: =IF($D$5=$H$4,$J21*H21, IF($D$5=$I$4,$K21*H21, "-")) -> - | N21: Tidsestimater fra kommuner
B22: 1. Klargøring | C22: 1.4 | D22: Gennemgang af kontekstdokumentation mv. | E22: RA | F22: Timepris | G22: =$M$4 -> 892 | J22: 10 | L22: =J22*G22 -> 8920 | N22: RA Tidsregistrering
B24: 1. Klargøring | C24: 1.5 | D24: Tabeloversigt | E24: RA | F24: Timepris | G24: =$M$4 -> 892 | J24: 10 | L24: =J24*G24 -> 8920 | N24: RA Tidsregistrering
B26: 1. Klargøring | C26: 1.6 | D26: Afleveringsbestemmelse: Arkiveringsversionens indhold og afleveringstidspunkt | E26: RA | F26: Timepris | G26: =$M$4 -> 892 | J26: 5 | L26: 4460 | N26: RA Tidsregistrering
B28: 1. Klargøring | C28: 1.7 | D28: Evt. kontrakt med ekstern leverandør om aflevering: Nationalt udbud (grundet systemstørrelse) | E28: Kommune | F28: Timepris | G28: =$M$5 -> 340.9233103 | H28: =$M$5 -> 340.9233103 | J28: 50 | L28: =J28*G28 -> 17046.16552 | M28: =J28*H28 -> 17046.16552 | N28: Tidsestimater fra kommuner
B29: 1. Klargøring | C29: 1.8 | D29: Arkiveringsversion: Teknisk dokumentation af it-systemet, dataudtræk, formatkonvertering, samle data og dokumentation til en arkiveringsversion + efterfølgende test af arkiveringsversion med ADA - ekstern leverandør | E29: Kommune | F29: Timepris/GB | L29: =IF(AND('2. Prisestimeringsark'!$C$5="Digitalt",'2. Prisestimeringsark'!$C$6="Nej"), '2. Prisestimeringsark'!$C$9,0) -> 0 | M29: =IF(AND('2. Prisestimeringsark'!$C$5="Digitalt",'2. Prisestimeringsark'!$C$6="Nej"), '2. Prisestimeringsark'!$C$9,0) -> 0 | N29: Kommunen indsætter pris fra leverandør
B30: 1. Klargøring | C30: 1.9 | D30: Fejlliste - kommunens gennemgang af bruttoliste og genskabelse af dokumenter | E30: Kommune | F30: Timepris | G30: =$M$5 -> 340.9233103 | H30: =$M$5 -> 340.9233103 | J30: 50 | L30: =J30*G30 -> 17046.16552 | M30: =J30*H30 -> 17046.16552 | N30: Tidsestimater fra kommuner
B31: 1. Klargøring | C31: 1.10 | D31: Fejlliste - Gennemgang og godkendelse af nettoliste, inkl. 1-2 tilbageløb | E31: RA | F31: Timepris | G31: =$M$4 -> 892 | J31: 5 | L31: 4460 | N31: RA Tidsregistrering
B33: 1. KLargøring | C33: 1.11 | D33: Løbende korrespondance med kommuner og leverandører | E33: RA | F33: Timepris | G33: =$M$4 -> 892 | J33: 3 | L33: 2676 | N33: RA Tidsregistrering
B35: 2. Aflevering | C35: 2.1 | D35: Aflevering af arkiveringsversion og følgeseddel: Opbevaringsmedie Anbefalet og (persondata og anden følsom information) krypteret forsendelse. | E35: Kommune | F35: Standardpris anbefalet forsendelse | G35: Kommune | L35: 0 | M35: 0 | N35: Kommunen indsætter pris fra leverandør
B36: 2. Aflevering | C36: 2.2 | D36: Test og godkendelse af arkiveringsversion | E36: RA | F36: Timepris | G36: =$M$4 -> 892 | J36: 25 | K36: 50 | L36: =IF($D$5=$H$4,$J36*G36, IF($D$5=$I$4,$K36*G36, "-")) -> - | N36: RA Tidsregistrering IV
B38: 3. Opbevaring | C38: 3.1 | D38: Opbevaring - RA: Opbevaring, vedligehold, tilgængeliggørelse og håndtering af henvendelser | E38: RA | F38: Engangsvederlag: fastpris/GB | G38: 19.7 | J38: =IF('2. Prisestimeringsark'!$C$5= "Digitalt",$D$4,0) -> 0 | L38: =G38*J38 -> 0 | M38: =$D$7 -> 0 | N38: Kommunen indsætter GB

Sheet 3.B Baggrund - Papir
B1: Baggrund: Beregningsmodel - Papirarkiv
B3: Valgt bruger input - Papir | F3: Tekst for bruger input - Digitalt | N3: Timesatser
B4: Størrelse på arkiv (Hyldemeter) | D4: =IF('2. Prisestimeringsark'!$C$5="Papir", '2. Prisestimeringsark'!$C$7, IF('2. Prisestimeringsark'!$C$5="Digitalt",0, "Vælg arkivtype")) -> 0 | F4: Papirarkivets tilstand: | H4: Ordnet | I4: Mindre ordnet | J4: Ikke ordnet | N4: RA | O4: ='3.A Baggrund - Digitalt'!$M$4 -> 892
B5: =F4 -> Papirarkivets tilstand: | D5: =IF('2. Prisestimeringsark'!$C$5="Papir", '2. Prisestimeringsark'!$C$8, IF('2. Prisestimeringsark'!$C$5="Digitalt",0, "Vælg arkivtype")) -> 0 | F5: Indtast samlet pris for ekstern leverandør (delopgave 1.1, 1.3 og 2.1): | N5: Kommune HK | O5: ='3.A Baggrund - Digitalt'!M5 -> 340.9233103
B6: =F5 -> Indtast samlet pris for ekstern leverandør (delopgave 1.1, 1.3 og 2.1): | D6: =IF('2. Prisestimeringsark'!$C$5="Papir", "", IF('2. Prisestimeringsark'!$C$5="Digitalt","", "Vælg arkivtype")) ->  | F6: Indtast estimeret egenudgift for 2.1 (transport): | N6: Kommune AC | O6: ='3.A Baggrund - Digitalt'!M6 -> 484.9531034
B12: Grå baggrund markerer, at der ikke bør foretages ændringer i cellen
B13: Hvid baggrund markerer, at tekst og tal kan ændres, således det slår igenne i hele modellen
B15: Fase | C15: Opgavenummer | D15: Delopgave beskrivelse | E15: Opgaveansvarlig | F15: Udgiftstype/enhed | G15: Enhedspris - Rigsarkiv | H15: Enhedspris - Eget arkiv | I15: Antal enheder - Opstart | J15: Antal enheder - Kompleksitet 1 | K15: Antal enheder - Kompleksitet 2 | L15: Antal enheder - Kompleksitet 3 | M15: Samlet pris - rigsarkiv | N15: Samlet pris - Eget arkiv | O15: Kilde: Pris + Omfang | P15: Senest opdateret
B16: (udfyldes fra liste) | C16: (udfyldes) | D16: (udfyldes) | E16: (udfyldes fra liste) | F16: (udfyldes) | G16: (udfyldes) | H16: (udfyldes) | I16: (udfyldes) | J16: (udfyldes) | K16: (udfyldes) | L16: (udfyldes) | M16: (autogenereres) | N16: (autogenereres)
B17: 1. Klargøring | C17: 1.1 | D17: Indledende oprydning i den samlede mængde arkivalier. Evt. samling af arkivalier fra flere lokaliteter. Evt. udsmidning - Intern | E17: Kommune | F17: Timepris | G17: =$O$5 -> 340.9233103 | H17: =$O$5 -> 340.9233103 | J17: 37 | M17: =IF('2. Prisestimeringsark'!$C$6="Nej",J17*G17,0) -> 0 | N17: =IF('2. Prisestimeringsark'!$C$6="Nej",J17*H17,0) -> 0
B18: 1. Klargøring | C18: 1.1 | D18: Indledende oprydning i den samlede mængde arkivalier. Evt. samling af arkivalier fra flere lokaliteter. Evt. udsmidning - Ekstern leverandør | E18: Ekstern leverandør | F18: Timepris | M18: =J18*G18 -> 0 | N18: =J18*H18 -> 0
B19: 1. Klargøring | C19: 1.2 | D19: Startmøde: Forberedelse, deltagelse (1-2 t.) og referat (inkl. Transport) | E19: Arkiv/RA | F19: Timepris | G19: =$O$4 -> 892 | H19: =$O$4 -> 892 | J19: 5 | M19: =J19*G19 -> 4460 | O19: RA Tidsregistrering
B21: 1. Klargøring | C21: 1.2 | D21: Startmøde: Forberedelse, deltagelse, evt. levendørdeltagelse, opfølgning på mødet | E21: Kommune | F21: Timepris | G21: =$O$5 -> 340.9233103 | H21: 340.9233103 | J21: 15 | M21: =J21*G21 -> 5113.849655 | N21: =J21*H21 -> 5113.849655
B22: 1. Klargøring | C22: 1.3 | D22: Oversigt over arkiv: Personaleressourcer til udarbejdelse - intern | E22: Kommune | F22: Timepris | G22: 340.9233103 | H22: 340.9233103 | J22: 50 | M22: =IF('2. Prisestimeringsark'!$C$6="Nej",J22*G22,0) -> 0 | N22: =IF('2. Prisestimeringsark'!$C$6="Nej",J22*H22,0) -> 0
B23: 1. Klargøring | C23: 1.3 | D23: Oversigt over arkiv: Personaleressourcer til udarbejdelse - Ekstern leverandør | E23: Ekstern leverandør | F23: Timepris | M23: 0 | N23: 0
B24: 1. Klargøring | C24: 1.4 | D24: Afleveringsbestemmelse: Indhold og afleveringstidspunkt | E24: RA | F24: Timepris | G24: =$O$4 -> 892 | H24: =$O$4 -> 892 | J24: 30 | M24: =J24*G24 -> 26760 | O24: RA Tidsregistrering
B26: 1. Klargøring | C26: 1.5 | D26: Evt. kontrakt med ekstern leverandør om aflevering | E26: Ekstern leverandør | F26: Timepris | G26: =$O$5 -> 340.9233103 | H26: =$O$5 -> 340.9233103 | J26: 50 | M26: 17046.16552 | N26: =J26*H26 -> 17046.16552
B27: 1. Klargøring | C27: 1.6 | D27: Kontrol af indtastninger + godkendelse: Tjek rækkefølge, huller i tidsserier mv. | E27: RA | F27: Timepris | G27: =$O$4 -> 892 | H27: =$O$4 -> 892 | J27: 23 | M27: 20516 | O27: RA Tidsregistrering
B29: 1. Klargøring | C29: 1.7 | D29: Vurdering: Ordningstilstand og omfang (inkl. transport) | E29: RA | F29: Timepris | G29: =$O$4 -> 892 | H29: =$O$4 -> 892 | J29: 14 | M29: 12488 | O29: RA Tidsregistrering
B31: 1. Klargøring | C31: 1.11 | D31: Ordning, pakning og registrering af bevaringsværdige arkivalier, Personaleressourcer - Intern | E31: Kommune | F31: Hyldemeterpris - se note | J31: 1000 | K31: 1300 | L31: 1500 | M31: =IF('2. Prisestimeringsark'!$C$6="Nej", IF($D$5=$H$4,$J31*D4, IF($D$5=$I$4,$K31*D4, IF($D$5=$J$4,$L31*D4, 0))),0) -> 0 | N31: =IF('2. Prisestimeringsark'!$C$6="Nej", IF($D$5=$H$4,$J31*D4, IF($D$5=$I$4,$K31*D4, IF($D$5=$J$4,$L31*D4, 0))), 0) -> 0
B32: 1. Klargøring | C32: 1.12 | D32: Ordning, pakning og registrering af bevaringsværdige arkivalier, Personaleressourcer - Ekstern leverandør | E32: Ekstern leverandør | F32: Indhent pris | M32: 0 | N32: 0
D33: Intern: Materialer til ordning, pakning og registrering: Arkivæsker (11 arkivæsker á 25 kr./hyldemester), labels på arkivæsker, lim til labels (1 kg. Lim á 100 kr./25-30 hyldemeter), malerrulle (50 kr.) | E33: Kommune | G33: =(3025+100+50)/10 -> 317.5 | H33: =(3025+100+50)/10 -> 317.5 | J33: =D4 -> 0 | M33: =J33*G33 -> 0 | N33: =J33*H33 -> 0
B34: 1. Klargøring | C34: 1.13 | D34: Ekstern: Materialer til ordning, pakning og registrering: Arkivæsker (11 arkivæsker á 25 kr./hyldemester), labels på arkivæsker, lim til labels (1 kg. Lim á 100 kr./25-30 hyldemeter), malerrulle (50 kr.) | E34: Ekstern leverandør | F34: Hyldemeterpris | M34: 0 | N34: 0
B35: 2. Aflevering | C35: 2.1 | D35: Transport (inkl. På- og aflæsning) - Intern, egne medarbejdere | E35: Kommune | F35: Pris evt. pr. hyldemeter | M35: 0 | N35: 0
B36: 2. Aflevering | C36: 2.2 | D36: Transport (inkl. På- og aflæsning) - ekstern leverandør fx flyttefirma/kurer | E36: Ekstern leverandør | F36: Pris evt. pr. hyldemeter | M36: =IF(AND('2. Prisestimeringsark'!$C$5="Papir",'2. Prisestimeringsark'!$C$6="Nej"), '2. Prisestimeringsark'!$C$9,0) -> 0 | N36: =IF(AND('2. Prisestimeringsark'!$C$5="Papir",'2. Prisestimeringsark'!$C$6="Nej"), '2. Prisestimeringsark'!$C$9,0) -> 0
B37: 2. Aflevering | C37: 2.3 | D37: Fysisk kontrol + godkendelse: Gennemgang, fjernelse af plastik mv. | E37: RA | F37: Timepris | G37: =$O$4 -> 892 | H37: =$O$4 -> 892 | J37: 7 | M37: =J37*G37 -> 6244
B39: 2. Aflevering | C39: 2.4 | D39: Modtagelse og opstilling i arkiv | E39: RA | F39: Timepris pr. hyldemeter | G39: =$O$4 -> 892 | H39: =$O$4 -> 892 | I39: 2 | J39: =(D4-20)/10 -> -2 | M39: =G39*$I$39+$J$39*G39 -> 0 | N39: =H39*$I$39+$J$39*H39 -> 0
B40: 3. Opbevaring | C40: 3.1 | D40: Opbevaring - RA | E40: RA | F40: Fastpris pr. hyldemeter (Engangsvederlag) | G40: 2355 | H40: =G40 -> 2355 | J40: =D4 -> 0 | M40: =J40*G40 -> 0
B41: 3. Opbevaring | C41: 3.2 | D41: Lønudgifter til § 7-stadsarkiv: | E41: Kommune | F41: 1 AC + 1 HK + overhead (1 år) | H41: =('3.A Baggrund - Digitalt'!R4+'3.A Baggrund - Digitalt'!Q4)*1.2 -> 1197520.8 | J41: 1 | N41: =J41*H41 -> 1197520.8
B42: 3. Opbevaring | C42: 3.3 | D42: Husleje til § 7-stadsarkiv: | F42: Årlig udgift | H42: =$D$7 -> 0 | J42: 1 | N42: =J42*H42 -> 0

Sheet Brugervejledning (hidden)
A1: Brugervejledning – Prisoverslag over aflevering af digitale data og papirarkivalier
A2: Introduktion og formål
A3: Definitioner | B3: LINK
A4: Prisestimeringsark | B4: LINK
A19: Proces for aflevering
A20: Fælles for digitale data og papirarkivalier
A26: Aflevering af digitale data
A60: Aflevering af papirarkivalier
A89: Forudsætninger
